bitfinex-derivatives/quotes_SOLF0:USTF0_20251107
["timestamp","ask_amount","ask_price","bid_price","bid_amount"]
[1762552018565,8.6098,163.42,163.4,0.03957043]
[1762552019156,3.1,163.41,163.4,0.03957043]
[1762552021066,3.14036464,163.44,163.4,2.92957043]
[1762552021367,3.1,163.43,163.4,2.92957043]
[1762552022162,8.6095,163.43,163.4,0.03957043]
[1762552022363,2.99,163.42,163.4,0.03957043]
[1762552022865,2.99,163.41,163.4,0.03957043]
[1762552023268,8.53956464,163.44,163.4,3.11957043]
[1762552023965,2.99,163.43,163.4,3.11957043]
[1762552025065,2.99,163.42,163.4,0.03957043]
[1762552026973,8.4997,163.42,163.4,0.03957043]
[1762552027269,2.99,163.41,163.4,0.03957043]
[1762552029271,5.5097,163.42,163.4,3.11957043]
[1762552030274,2.99,163.43,163.4,3.11957043]
[1762552032072,8.4994,163.43,163.4,3.11957043]
[1762552033074,2.99,163.42,163.4,3.11957043]
[1762552033275,2.99,163.42,163.4,0.03957043]
[1762552035775,2.99,163.41,163.4,0.03957043]
[1762552036981,0.04036464,163.44,163.4,3.11957043]
[1762552036982,2.99,163.43,163.4,3.11957043]
[1762552037482,0.04036464,163.44,163.4,11.11957043]
[1762552037672,0.04036464,163.44,163.41,3.08]
[1762552038074,0.04036464,163.44,163.41,8.59]
[1762552038283,0.04036464,163.44,163.42,3.08]
[1762552038980,0.04036464,163.44,163.42,8.5896]
[1762552039184,0.04036464,163.44,163.43,3.08]
[1762552041681,2.99,163.49,163.44,5.5087]
[1762552042182,2.99,163.49,163.44,8.5887]
[1762552042770,2.99,163.47,163.45,0.03937157]
[1762552044177,2.99,163.43,163.37,4.94]
[1762552045280,2.99,163.41,163.38,0.04542509]
[1762552049085,8.5001,163.41,163.38,0.04542509]
[1762552049390,2.99,163.4,163.38,0.04542509]
[1762552057388,2.93,163.38,163.28,3.07]
[1762552057692,2.93,163.36,163.28,3.07]
[1762552057886,2.93,163.34,163.28,3.07]
[1762552058389,2.93,163.34,163.24,12.0167556]
[1762552058390,2.97472747,163.33,163.3,3.07]
[1762552060287,0.04472747,163.33,163.3,3.07]
[1762552062885,0.04472747,163.33,163.32,2.93]
[1762552063090,0.04472747,163.33,163.29,2.97554051]
[1762552063294,2.90472747,163.33,163.29,2.97554051]
[1762552064086,0.04472747,163.33,163.29,2.97554051]
[1762552064288,0.04472747,163.33,163.3,2.15880725]
[1762552064498,0.04472747,163.33,163.31,2.93]
[1762552064892,0.04472747,163.33,163.31,8.4433]
[1762552065092,0.04472747,163.33,163.32,2.93]
[1762552066395,0.04472747,163.33,163.3,8.0]
[1762552066601,2.90472747,163.33,163.3,10.93]
[1762552067104,0.04472747,163.33,163.31,2.93]
[1762552069102,0.04472747,163.33,163.32,2.93]
[1762552075999,2.86,163.39,163.34,2.93]
[1762552076509,2.86,163.39,163.34,8.4421]
[1762552077109,2.90553928,163.38,163.35,8.48694912]
[1762552079909,2.90553928,163.38,163.36,8.4416]
[1762552080507,0.04553928,163.38,163.37,2.93]
[1762552082013,5.01880725,163.45,163.39,8.4405]
[1762552082212,3.06,163.44,163.39,8.4405]
[1762552082414,3.06,163.44,163.4,3.11]
[1762552082617,3.06,163.44,163.41,3.11]
[1762552083109,0.04345911,163.44,163.42,3.11]
[1762552083819,0.04345911,163.44,163.43,3.11]
[1762552088320,0.04345911,163.44,163.41,0.04197351]
[1762552088321,3.10345911,163.44,163.41,0.04197351]
[1762552088718,8.61255911,163.44,163.41,0.04197351]
[1762552089022,3.06,163.43,163.41,0.04197351]
[1762552090526,3.06,163.42,163.41,0.04197351]
[1762552090733,3.06,163.42,163.35,10.1219]
[1762552090922,3.06,163.4,163.35,13.2319]
[1762552091321,3.06,163.4,163.37,3.11]
[1762552091721,3.10186738,163.4,163.37,3.15506543]
[1762552092725,3.10186738,163.4,163.37,0.04506543]
[1762552094828,3.06,163.39,163.37,0.04506543]
[1762552095029,5.21880725,163.39,163.37,0.04506543]
[1762552095230,3.06,163.38,163.37,0.04506543]
[1762552095426,3.06,163.38,163.29,5.5139]
[1762552095628,3.06,163.35,163.29,5.5139]
[1762552096832,3.06,163.33,163.3,0.04343553]
[1762552097833,3.06,163.33,163.3,3.15343553]
[1762552098835,0.04192406,163.34,163.31,3.11]
[1762552105241,3.10192406,163.34,163.3,0.04343553]
[1762552105543,3.10192406,163.34,163.3,3.15343553]
[1762552106337,3.10192406,163.34,163.3,0.04343553]
[1762552107231,3.06,163.32,163.3,0.04343553]
[1762552107634,3.06,163.31,163.3,0.04343553]
[1762552111343,3.06,163.29,163.25,3.81]
[1762552111539,3.06,163.31,163.26,3.11]
[1762552112449,2.95585562,163.3,163.27,0.04360816]
[1762552112653,8.46965562,163.3,163.27,0.04360816]
[1762552115846,2.91,163.29,163.27,0.04360816]
[1762552117848,0.04585562,163.3,163.27,3.15360816]
[1762552118954,2.95585562,163.3,163.27,8.66820816]
[1762552119456,2.95585562,163.3,163.27,3.15360816]
[1762552121851,3.09,163.29,163.27,0.04360816]
[1762552126863,3.09,163.29,163.27,2.99360816]
[1762552129161,3.09,163.29,163.27,0.04360816]
[1762552130263,3.13585562,163.3,163.27,5.55830816]
[1762552130471,3.13585562,163.3,163.27,8.50830816]
[1762552138675,0.04585562,163.3,163.28,8.4642]
[1762552138972,0.04585562,163.3,163.29,2.95]
[1762552139371,5.72116842,163.37,163.29,4.59550609]
[1762552139673,3.09,163.38,163.34,2.95]
[1762552139866,11.41532478,163.44,163.31,5.5132]
[1762552139867,3.09,163.37,163.31,5.5132]
[1762552140069,3.09,163.37,163.31,2.95]
[1762552140574,3.13166033,163.36,163.32,0.04182112]
[1762552141080,3.09,163.35,163.32,0.04182112]
[1762552142077,3.09,163.33,163.32,0.04182112]
[1762552145785,5.76282875,163.36,163.32,0.04182112]
[1762552145786,3.05,163.35,163.32,0.04182112]
[1762552146789,3.05,163.34,163.32,0.04182112]
[1762552147986,3.05,163.33,163.32,0.04182112]
[1762552149674,3.05,163.3,163.24,12.72]
[1762552149880,3.05,163.3,163.24,7.87]
[1762552150389,3.05,163.28,163.24,7.87]
[1762552150580,3.05,163.28,163.24,7.9135507]
[1762552150581,3.09439024,163.28,163.24,7.9135507]
[1762552151184,3.09439024,163.28,163.25,3.15]
[1762552153083,0.04439024,163.28,163.26,3.15]
[1762552153283,3.05,163.34,163.27,3.15]
[1762552153489,8.77875784,163.37,163.3,3.15]
[1762552153686,8.5621,163.35,163.3,3.15]
[1762552154083,3.05,163.34,163.3,3.15]
[1762552154279,3.09111072,163.34,163.3,3.19238156]
[1762552154878,3.05,163.33,163.3,0.04238156]
[1762552155484,3.05,163.31,163.3,0.04238156]
[1762552157591,4.27,163.31,163.3,0.04238156]
[1762552158296,3.05,163.31,163.3,0.04238156]
[1762552166203,3.05,163.33,163.3,0.04238156]
[1762552167000,8.5628,163.33,163.3,0.04238156]
[1762552167203,3.05,163.33,163.3,0.04238156]
[1762552169006,3.05,163.32,163.3,0.04238156]
[1762552169209,3.09111072,163.34,163.3,3.19238156]
[1762552169701,3.09111072,163.34,163.3,0.04238156]
[1762552170104,3.09111072,163.34,163.3,3.19238156]
[1762552170805,3.05,163.33,163.3,3.19238156]
[1762552171306,3.05,163.33,163.3,0.04238156]
[1762552173105,3.05,163.33,163.3,2.98238156]
[1762552174206,3.06,163.33,163.3,2.98238156]
[1762552176408,3.06,163.33,163.31,3.63]
[1762552177107,8.5728,163.33,163.31,3.63]
[1762552180005,3.06,163.33,163.31,6.57]
[1762552180412,0.04111072,163.34,163.32,2.94]
[1762552181513,0.04111072,163.34,163.33,3.13]
[1762552181816,8.74875784,163.39,163.33,3.13]
[1762552181817,3.02,163.39,163.33,3.13]
[1762552182705,3.02,163.39,163.36,3.13]
[1762552182907,3.06098152,163.39,163.36,3.17402763]
[1762552183106,3.06098152,163.39,163.37,3.13]
[1762552183808,0.04098152,163.39,163.37,3.13]
[1762552184219,0.04098152,163.39,163.38,3.13]
[1762552189024,3.02,163.45,163.39,3.13]
[1762552189723,3.02,163.45,163.39,8.6406]
[1762552190122,3.06628258,163.44,163.4,3.17004779]
[1762552191128,3.06628258,163.44,163.41,3.13]
[1762552192818,3.06628258,163.44,163.42,4.36]
[1762552194521,0.04628258,163.44,163.43,3.13]
[1762552194719,0.04628258,163.44,163.42,7.49]
[1762552195425,3.06628258,163.44,163.42,7.49]
[1762552196722,0.04628258,163.44,163.43,3.13]
[1762552216941,3.04,163.52,163.47,5.5078]
[1762552217136,3.04,163.52,163.48,3.0]
[1762552218045,3.04,163.52,163.49,8.5073]
[1762552218046,3.07977393,163.52,163.49,8.5073]
[1762552218942,3.07977393,163.52,163.48,0.04056588]
[1762552218943,0.03977393,163.52,163.51,3.0]
[1762552230346,3.07977393,163.52,163.48,0.04056588]
[1762552230547,3.04,163.51,163.48,0.04056588]
[1762552230849,3.04,163.49,163.48,0.04056588]
[1762552231550,3.04,163.51,163.48,3.04056588]
[1762552231752,8.5468,163.51,163.48,0.04056588]
[1762552231952,3.04,163.5,163.48,0.04056588]
[1762552233253,2.9,163.49,163.48,0.04056588]
[1762552251868,8.3676,163.48,163.47,9.875e-05]
[1762552252067,8.3676,163.48,163.36,8.76986214]
[1762552252068,2.86,163.47,163.36,8.76986214]
[1762552252267,2.86,163.47,163.36,3.08]
[1762552252467,2.86,163.44,163.38,3.08]
[1762552252970,2.86,163.42,163.39,0.04420937]
[1762552253763,2.86,163.42,163.39,3.12420937]
[1762552253965,0.04188047,163.43,163.39,3.12420937]
[1762552254764,0.04188047,163.43,163.42,3.08]
[1762552258563,2.90188047,163.43,163.39,8.63480937]
[1762552258973,2.90188047,163.43,163.39,3.12420937]
[1762552260372,2.90188047,163.43,163.4,5.5102]
[1762552260870,0.04188047,163.43,163.41,3.08]
[1762552261274,2.90188047,163.43,163.4,5.5102]
[1762552263378,2.90188047,163.43,163.39,3.13420937]
[1762552265085,2.90188047,163.43,163.4,5.5103]
[1762552266780,2.90188047,163.43,163.39,3.13420937]
[1762552267485,2.90188047,163.43,163.39,5.55480937]
[1762552267878,2.90188047,163.43,163.39,8.64480937]
[1762552269188,0.04188047,163.43,163.41,3.09]
[1762552269686,3.20188047,163.43,163.39,3.13420937]
[1762552269984,3.20188047,163.43,163.41,5.5098]
[1762552270588,3.20188047,163.43,163.39,0.04420937]
[1762552270979,3.16,163.42,163.39,0.04420937]
[1762552271687,3.16,163.41,163.39,0.04420937]
[1762552273991,8.67,163.41,163.39,0.04420937]
[1762552274185,3.16,163.4,163.39,0.04420937]
[1762552285190,5.55148047,163.43,163.39,0.04420937]
[1762552285384,0.04188047,163.43,163.39,3.13420937]
[1762552286790,0.04188047,163.43,163.41,3.09]
[1762552299105,0.04188047,163.43,163.41,8.5999]
[1762552299312,0.04188047,163.43,163.42,3.14]
[1762552300915,0.04188047,163.43,163.4,3.14]
[1762552302011,0.04188047,163.43,163.4,8.6501]
[1762552302509,0.04188047,163.43,163.41,2.89]
[1762552303514,0.04188047,163.43,163.4,2.89]
[1762552303911,4.21188047,163.43,163.39,0.04420937]
[1762552304112,2.95,163.41,163.39,0.04420937]
[1762552304705,2.95,163.4,163.39,0.04420937]
[1762552322628,5.10857589,163.4,163.39,0.04420937]
[1762552322830,2.95,163.4,163.39,0.04420937]
[1762552323626,8.3801,163.41,163.39,3.08420937]
[1762552325632,8.3801,163.41,163.39,0.04420937]
[1762552325926,2.87,163.4,163.39,0.04420937]
[1762552327022,2.87,163.42,163.39,3.08420937]
[1762552327328,0.04188047,163.43,163.39,3.08420937]
[1762552327529,0.04188047,163.43,163.41,3.04]
[1762552330626,8.3777,163.48,163.44,3.04]
[1762552331624,8.4182641,163.48,163.44,3.08668423]
[1762552331931,2.87,163.47,163.44,3.08668423]
[1762552332929,5.02857589,163.46,163.44,0.04668423]
[1762552333127,2.87,163.45,163.44,0.04668423]
[1762552336427,2.87,163.42,163.37,3.04]
[1762552337422,2.91126452,163.41,163.38,0.04014011]
[1762552337730,2.87,163.4,163.38,0.04014011]
[1762552337927,2.87,163.39,163.38,0.04014011]
[1762552338632,5.02857589,163.39,163.38,0.04014011]
[1762552344329,2.87,163.35,163.3,3.04]
[1762552344534,2.87,163.34,163.3,3.04]
[1762552345236,2.90912443,163.34,163.31,4.31]
[1762552345639,2.87,163.33,163.31,4.31]
[1762552346530,0.03912443,163.34,163.31,7.35]
[1762552346837,2.90912443,163.34,163.31,4.31]
[1762552349340,2.90912443,163.34,163.31,7.35]
[1762552350433,0.03912443,163.34,163.32,3.04]
[1762552353939,0.03912443,163.34,163.32,8.5529]
[1762552354142,0.03912443,163.34,163.33,2.96]
[1762552363051,5.5108,163.39,163.31,14.46857589]
[1762552363052,2.88,163.4,163.36,2.96]
[1762552364047,2.92240131,163.4,163.36,3.00671803]
[1762552364443,3.04,163.39,163.36,3.00671803]
[1762552365248,3.08240131,163.4,163.36,3.00671803]
[1762552365950,3.08240131,163.4,163.36,8.51831803]
[1762552367247,3.08240131,163.4,163.37,2.96]
[1762552368254,3.08240131,163.4,163.38,2.96]
[1762552368452,0.04240131,163.4,163.38,2.96]
[1762552369654,0.04240131,163.4,163.39,2.96]
[1762552370652,3.08240131,163.4,163.37,2.96]
[1762552371157,3.08240131,163.4,163.36,8.51831803]
[1762552371953,8.59280131,163.4,163.37,2.96]
[1762552372655,3.04,163.39,163.36,0.04671803]
[1762552372856,3.04,163.39,163.36,3.00671803]
[1762552374346,0.04240131,163.4,163.36,3.00671803]
[1762552375352,3.08240131,163.4,163.36,3.00671803]
[1762552378353,0.04240131,163.4,163.36,3.00671803]
[1762552381360,0.04240131,163.4,163.36,8.51821803]
[1762552381558,0.04240131,163.4,163.37,2.96]
[1762552382568,0.04240131,163.4,163.39,2.9]
[1762552383667,8.3788,163.45,163.4,2.9]
[1762552383980,2.87,163.44,163.4,2.9]
[1762552384874,2.91488711,163.44,163.4,2.94630946]
[1762552385871,2.87,163.43,163.4,2.94630946]
[1762552387169,2.87,163.43,163.41,4.77]
[1762552390376,2.91488711,163.44,163.42,2.9]
[1762552390670,0.04488711,163.44,163.42,2.9]
[1762552393179,0.04488711,163.44,163.43,2.9]
[1762552397879,0.04488711,163.44,163.42,2.9]
[1762552404181,0.04488711,163.44,163.42,8.4096]
[1762552404386,0.04488711,163.44,163.43,2.9]
[1762552412604,3.13488711,163.44,163.42,4.38]
[1762552412894,3.09,163.43,163.42,4.38]
[1762552414494,3.09,163.43,163.31,10.95380243]
[1762552414495,3.09,163.39,163.34,2.97]
[1762552415394,0.04185386,163.38,163.35,0.04617833]
[1762552415590,3.13185386,163.38,163.35,3.01617833]
[1762552415799,3.13185386,163.38,163.35,0.04617833]
[1762552415994,3.09,163.36,163.35,0.04617833]
[1762552416196,8.79725068,163.36,163.35,0.04617833]
[1762552416397,3.09,163.36,163.35,0.04617833]
[1762552418098,4.31,163.36,163.35,0.04617833]
[1762552418992,3.09,163.33,163.29,2.97]
[1762552419804,3.09,163.32,163.26,185.08540707]
[1762552420000,3.13523626,163.31,163.27,3.00890099]
[1762552420196,3.13523626,163.31,163.27,3.01337745]
[1762552420398,0.04523626,163.31,163.27,3.01337745]
[1762552423104,0.04523626,163.31,163.27,8.52797745]
[1762552423409,0.04523626,163.31,163.27,3.01337745]
[1762552423811,0.04523626,163.31,163.29,3.05]
[1762552425911,3.06523626,163.31,163.27,0.04337745]
[1762552426214,3.06523626,163.31,163.27,3.09337745]
[1762552429213,0.04523626,163.31,163.27,3.09337745]
[1762552430405,3.06523626,163.31,163.27,3.09337745]
[1762552433708,3.02,163.3,163.27,3.09337745]
[1762552435001,5.55863626,163.31,163.27,3.09337745]
[1762552435002,3.02,163.29,163.27,0.04337745]
[1762552436013,8.5341,163.29,163.27,0.04337745]
[1762552436607,3.02,163.28,163.27,0.04337745]
[1762552440814,8.57873626,163.31,163.27,3.09337745]
[1762552441115,3.02,163.3,163.27,3.09337745]
[1762552441316,3.02,163.28,163.27,0.04337745]
[1762552442214,3.08,163.3,163.27,2.95337745]
[1762552445217,5.55883626,163.31,163.27,2.95337745]
[1762552445218,0.04523626,163.31,163.27,2.95337745]
[1762552445425,0.04523626,163.31,163.27,5.11418966]
[1762552445623,0.04523626,163.31,163.28,2.91]
[1762552446816,0.04523626,163.31,163.29,2.91]
[1762552448024,0.04523626,163.31,163.29,8.4239]
[1762552448322,0.04523626,163.31,163.3,2.91]
[1762552451524,3.08,163.41,163.31,2.91]
[1762552451729,3.08,163.41,163.33,2.91]
[1762552452119,5.5107,163.39,163.33,2.91]
[1762552452627,0.03957939,163.38,163.35,2.91]
[1762552456822,3.11957939,163.38,163.35,2.91]
[1762552457027,3.11957939,163.38,163.34,0.04174945]
[1762552457028,3.08,163.35,163.34,0.04174945]
[1762552457225,3.08,163.35,163.3,3.03]
[1762552457624,7.83086833,163.37,163.3,3.03]
[1762552457625,3.08,163.33,163.3,5.94]
[1762552457826,8.75005612,163.39,163.31,2.91]
[1762552458125,3.08,163.38,163.32,5.07081221]
[1762552458331,0.04388446,163.37,163.33,2.95554469]
[1762552458530,3.12388446,163.37,163.33,2.95554469]
[1762552463929,5.5118,163.36,163.33,2.95554469]
[1762552464538,3.08,163.34,163.33,0.04554469]
[1762552470841,5.24081221,163.34,163.33,0.04554469]
[1762552472447,3.03,163.28,163.26,2.91]
[1762552472746,3.03,163.28,163.23,3.14]
[1762552473444,0.04351864,163.27,163.25,3.14]
[1762552474738,3.07351864,163.27,163.25,3.14]
[1762552476039,0.04351864,163.27,163.25,3.14]
[1762552479743,3.07351864,163.27,163.25,3.14]
[1762552482345,0.04351864,163.27,163.25,3.14]
[1762552484538,3.17351864,163.27,163.25,3.14]
[1762552484742,5.33433085,163.27,163.24,0.0388087]
[1762552484943,3.13,163.26,163.24,0.0388087]
[1762552485148,8.6452,163.26,163.24,0.0388087]
[1762552485347,3.13,163.25,163.24,0.0388087]
[1762552497261,8.6453,163.26,163.24,2.9588087]
[1762552497659,8.6453,163.26,163.24,0.0388087]
[1762552497961,3.13,163.25,163.24,0.0388087]
[1762552498361,3.17351864,163.27,163.24,2.9588087]
[1762552498558,0.04351864,163.27,163.24,2.9588087]
[1762552503760,3.14,163.33,163.26,2.93]
[1762552503966,3.14,163.33,163.27,2.93]
[1762552504151,5.67005612,163.38,163.27,2.93]
[1762552504152,3.14,163.37,163.27,2.93]
[1762552504354,3.14,163.37,163.3,2.93]
[1762552504855,3.18607043,163.35,163.32,2.96854593]
[1762552505566,3.18607043,163.35,163.32,0.03854593]
[1762552505757,3.14,163.34,163.32,0.03854593]
[1762552508458,3.14,163.34,163.32,2.96854593]
[1762552512963,3.14,163.34,163.32,0.03854593]
[1762552515069,8.6526,163.34,163.32,0.03854593]
[1762552515368,3.14,163.33,163.32,0.03854593]
[1762552515670,3.14,163.33,163.21,11.53224964]
[1762552515671,3.14,163.3,163.24,2.93]
[1762552516369,5.5141,163.29,163.24,2.93]
[1762552516571,0.04317366,163.28,163.25,2.9700867]
[1762552517472,8.69757366,163.28,163.25,2.9700867]
[1762552518172,5.55757366,163.28,163.25,2.9700867]
[1762552518473,0.04317366,163.28,163.25,2.9700867]
[1762552518667,3.18317366,163.28,163.25,2.9700867]
[1762552519773,8.69767366,163.28,163.25,2.9700867]
[1762552520875,0.04317366,163.28,163.25,2.9700867]
[1762552523172,3.18317366,163.28,163.25,2.9700867]
[1762552524976,0.04317366,163.28,163.25,2.9700867]
[1762552525666,0.04317366,163.28,163.25,8.4853867]
[1762552525865,0.04317366,163.28,163.25,2.9700867]
[1762552526083,0.04317366,163.28,163.26,2.93]
[1762552527573,3.18317366,163.28,163.26,2.93]
[1762552528076,0.04317366,163.28,163.26,2.93]
[1762552530882,0.04317366,163.28,163.27,2.93]
[1762552532285,8.6526,163.34,163.29,2.96]
[1762552532487,3.14,163.34,163.29,2.96]
[1762552533095,3.1,163.37,163.31,2.96]
[1762552533288,0.04275248,163.33,163.31,2.96]
[1762552533888,0.04275248,163.33,163.31,6.53]
[1762552534090,0.04275248,163.33,163.32,2.96]
[1762552535698,3.1,163.39,163.32,2.96]
[1762552536498,0.04096973,163.37,163.34,3.00358316]
[1762552537500,0.04096973,163.37,163.34,8.51568316]
[1762552537897,0.04096973,163.37,163.35,2.96]
[1762552542291,3.03096973,163.37,163.34,0.04358316]
[1762552543795,0.04096973,163.37,163.34,2.93358316]
[1762552547103,3.15096973,163.37,163.34,2.93358316]
[1762552547496,0.04096973,163.37,163.34,2.93358316]
[1762552547699,3.11,163.47,163.36,3.06]
[1762552548203,5.5085,163.46,163.4,3.06]
[1762552548604,5.5085,163.46,163.41,0.03918859]
[1762552548806,0.04432698,163.45,163.42,3.06]
[1762552554409,3.37765327,163.53,163.43,3.06]
[1762552554410,5.5068,163.51,163.43,3.06]
[1762552554714,5.5068,163.51,163.44,3.06]
[1762552555310,8.617,163.5,163.45,3.06]
[1762552555513,8.617,163.5,163.46,3.10433706]
[1762552556110,3.11,163.5,163.46,3.10433706]
[1762552561711,2.15534665,163.52,163.46,3.10433706]
[1762552561913,5.26534665,163.52,163.46,3.10433706]
[1762552562113,3.05,163.56,163.47,3.02]
[1762552562417,5.20534665,163.56,163.51,3.02]
[1762552562717,3.05,163.56,163.52,6.05]
[1762552563121,3.05,163.55,163.52,6.05]
[1762552564121,2.15534665,163.59,163.53,3.02]
[1762552564420,3.05,163.58,163.54,3.05968424]
[1762552565220,3.05,163.57,163.54,0.03968424]
[1762552565617,5.20534665,163.57,163.54,0.03968424]
[1762552565815,3.05,163.56,163.54,0.03968424]
[1762552567120,8.555,163.56,163.54,0.03968424]
[1762552567721,3.05,163.55,163.54,0.03968424]
[1762552576728,2.15534665,163.57,163.54,3.05968424]
[1762552576729,3.05,163.57,163.54,3.05968424]
[1762552576925,3.05,163.56,163.54,0.03968424]
[1762552577131,3.05,163.55,163.54,0.03968424]
[1762552578426,3.05,163.58,163.54,3.05968424]
[1762552578623,3.05,163.58,163.54,3.05982638]
[1762552580128,3.05,163.57,163.54,3.05982638]
[1762552581630,3.05,163.56,163.54,0.03982638]
[1762552582530,3.05,163.56,163.54,3.05982638]
[1762552582931,5.5048,163.57,163.54,3.05982638]
[1762552583127,8.5548,163.57,163.54,3.05982638]
[1762552583836,10.70954665,163.59,163.54,3.05982638]
[1762552584037,3.05,163.58,163.54,3.05982638]
[1762552584335,3.05,163.58,163.54,0.03982638]
[1762552584734,8.5547,163.57,163.54,0.03982638]
[1762552584929,3.05,163.56,163.54,0.03982638]
[1762552585443,8.555,163.56,163.54,0.03982638]
[1762552588335,3.05,163.56,163.54,0.03982638]
[1762552589235,8.5551,163.56,163.54,0.03982638]
[1762552589835,2.15534665,163.59,163.45,3.02]
[1762552589836,3.05,163.53,163.45,3.02]
[1762552590036,3.05,163.52,163.45,3.02]
[1762552590942,3.09403919,163.5,163.47,0.04653461]
[1762552591243,3.09403919,163.5,163.47,3.06653461]
[1762552591743,0.04403919,163.5,163.47,3.06653461]
[1762552593937,0.04403919,163.5,163.47,8.57433461]
[1762552594143,0.04403919,163.5,163.48,2.86]
[1762552600741,0.04403919,163.5,163.48,8.3674]
[1762552600938,0.04403919,163.5,163.49,2.86]
[1762552601753,3.05,163.54,163.49,2.86]
[1762552601955,3.05,163.54,163.5,2.95]
[1762552602448,3.16,163.56,163.51,2.95]
[1762552602640,3.16,163.55,163.52,0.04396594]
[1762552603849,8.6655,163.55,163.52,0.04396594]
[1762552604052,3.16,163.54,163.52,0.04396594]
[1762552605152,3.16,163.56,163.52,2.99396594]
[1762552613658,8.6642,163.59,163.54,5.5054]
[1762552613852,3.16,163.58,163.55,2.98962789]
[1762552614456,3.16,163.57,163.55,2.98962789]
[1762552615662,3.16,163.6,163.56,2.95]
[1762552615857,3.16,163.6,163.56,2.99076255]
[1762552617064,3.16,163.6,163.57,2.95]
[1762552617662,3.16,163.6,163.58,2.95]
[1762552617853,3.16,163.6,163.56,2.99076255]
[1762552618359,7.86865238,163.63,163.56,2.99076255]
[1762552618360,3.16,163.59,163.56,0.04076255]
[1762552619263,3.16,163.57,163.56,0.04076255]
[1762552621264,3.16,163.6,163.56,0.04076255]
[1762552621567,3.16,163.59,163.56,0.04627515]
[1762552621760,3.16,163.57,163.56,0.04627515]
[1762552622262,3.02,163.56,163.5,2.95]
[1762552623368,3.02,163.54,163.51,3.09179282]
[1762552635067,0.04103041,163.55,163.51,3.09179282]
[1762552635265,3.06103041,163.55,163.51,3.09179282]
[1762552636070,3.06103041,163.55,163.52,3.05]
[1762552636769,0.04103041,163.55,163.54,3.05]
[1762552643573,3.06103041,163.55,163.53,6.41599697]
[1762552645285,3.06103041,163.55,163.52,3.05]
[1762552646777,3.02,163.53,163.51,0.04179282]
[1762552646972,3.02,163.53,163.51,3.09179282]
[1762552647386,3.02,163.53,163.51,0.04179282]
[1762552649186,3.02,163.52,163.51,0.04179282]
[1762552670897,3.07,163.5,163.47,4.11]
[1762552671488,3.07,163.5,163.47,7.22]
[1762552671801,3.07,163.5,163.48,3.11]
[1762552672200,3.11300447,163.5,163.48,3.11]
[1762552678406,3.11300447,163.5,163.47,4.1522956]
[1762552678806,3.07,163.48,163.47,4.1522956]
[1762552680408,3.07,163.43,163.38,3.11]
[1762552681202,8.5789,163.45,163.39,3.11]
[1762552681409,0.04375935,163.44,163.41,3.11]
[1762552681603,3.11375935,163.44,163.41,3.11]
[1762552682005,0.04375935,163.44,163.41,3.11]
[1762552682305,0.04375935,163.44,163.43,5.04571907]
[1762552683204,0.04375935,163.44,163.43,2.15571907]
[1762552683405,3.11375935,163.44,163.42,2.89]
[1762552684512,0.04375935,163.44,163.43,2.89]
[1762552684710,0.04375935,163.44,163.43,5.04571907]
[1762552685797,3.11375935,163.44,163.43,2.15571907]
[1762552685997,3.11375935,163.44,163.41,5.04571907]
[1762552686209,3.11375935,163.44,163.42,2.89]
[1762552686806,3.11375935,163.44,163.41,5.04571907]
[1762552687813,3.11375935,163.44,163.4,0.04395412]
[1762552687814,3.07,163.43,163.4,0.04395412]
[1762552688610,3.07,163.41,163.4,0.04395412]
[1762552689212,3.07,163.42,163.4,0.04395412]
[1762552689416,3.07,163.42,163.4,2.93395412]
[1762552690303,8.5797,163.42,163.4,2.93395412]